Cogmind - Beta 9.6 @@@ ROGUE MODE // 2020.05.10 @ 14:25:09 Player: 3.14 Result: Escaped! Performance ------------- Evolutions (9) 4500 Regions Visited (28) 5600 Robots Destroyed (414) 2070 Value Destroyed (19773) 19773 Prototype IDs (44) 880 Alien Tech Used (0) 0 Bonus (11147) 11147 TOTAL SCORE: 43970 Bonus ------- High Alert Combat Kills 5863 Follower Combat Kills 1383 Entered Garrisons 1000 Used RIF Installer 500 Aligned with FarCom 300 Built Enhanced Grunts 300 A7 Reached Mainframe 300 Win 3000 Friendly Fire -1499 Cogmind --------- Core Integrity 1194/1600 Matter 228/300 Energy 17/100 System Corruption 14% Temperature Cool (0) Movement Core (50) Location To Epsilon Eridani Parts ------- > --- POWER (2) -------- (None) > --- PROPULSION (4) --- Improved Heavy Treads Biometal Heavy Treads > --- UTILITY (12) ----- (None) > --- WEAPON (7) ------- (None) > --- INVENTORY (4) ---- Improved Energy Well (501) Cooled Phase Cannon KE Penetrator Gamma Bomb Array Peak State ------------ > --- POWER ------------ Micro Fission Core Reinforced Quantum Reactor > --- PROPULSION ------- Biometal Heavy Treads Biometal Heavy Treads > --- UTILITY ---------- Advanced Heat Sink Advanced Cooling System Lightpack 2.0 Advanced Targeting Computer Advanced Target Analyzer Advanced Armor Integrity Analyzer Improved Kinecellerator Advanced Weapon Cycler Advanced Transmission Jammer Centrium Medium Armor Plating System Restoration Module > --- WEAPON ----------- Cooled Phase Cannon KE Penetrator KE Penetrator KE Penetrator KE Penetrator Railgun Railgun > --- INVENTORY -------- Light Quantum Reactor Reinforced Quantum Reactor Biometal Heavy Treads Advanced Heat Sink Improved Energy Well High-capacity Matter Pod Centrium Medium Armor Plating Advanced Powered Armor Advanced Powered Armor Advanced Thermal Shield EM Shield Drone Bay KE Penetrator KE Penetrator KE Penetrator KE Penetrator Railgun Railgun Railgun Gamma Bomb Array Fusion Bomb Launcher Advanced Remote Datajack [Rating: 197] Favorites ----------- Power Micro Fission Core Engine Light Ion Engine Power Core Micro Fission Core Reactor Light Particle Reactor Propulsion Advanced Treads Treads Advanced Treads Leg Aluminum Leg Utility Lightpack 2.0 Device Advanced Heat Sink Storage Lightpack 2.0 Processor Advanced Targeting Computer Hackware Relay Coupler [NC] Protection Improved Heavy Armor Plating Weapon KE Penetrator Energy Gun Heavy Particle Gun Energy Cannon Light EM Pulse Cannon Ballistic Gun KE Penetrator Launcher Gamma Bomb Array Special Weapon Improved Remote Datajack Slashing Weapon Mining Claw Build | -11 -10 -10 -10 -9 -8 -8 -8 -7 -7 -7 -7 -7 -6 -5 -5 -5 -5 -5 -5 -4 -4 -4 -3 -3 -2 -2 -2 -1 ------- Run | Scr Mat Min Exi Min Mat Gar Mat Fac Gar Fac Low Low Fac Fac Ext Cet Arc Hub Gar Fac Gar Fac Res Arm Res Gar Res Acc Slots Evolved 18 | . . . . . 4 . . 2 . . . . 2 2 . . . . . 2 . . 2 . 2 . . 2 Power 1 | . . . . . . . . . . . . . . . . . . . . . . . 1 . . . . . Propulsion 2 | . . . . . 1 . . 1 . . . . . . . . . . . . . . . . . . . . Utility 10 | . . . . . 1 . . 1 . . . . 2 1 . . . . . 1 . . 1 . 1 . . 2 Weapon 5 | . . . . . 2 . . . . . . . . 1 . . . . . 1 . . . . 1 . . . Parts Attached 351 | 7 14 5 . 2 22 14 23 7 2 1 1 . 34 7 18 8 . . . 17 9 11 35 28 27 16 20 23 Power 26 | 1 . 1 . . 2 2 . 1 . . . . 2 . . . . . . 1 2 . 6 3 1 2 2 . Engine 6 | 1 . 1 . . 1 1 . 1 . . . . 1 . . . . . . . . . . . . . . . Core 7 | . . . . . 1 1 . . . . . . 1 . . . . . . 1 1 . 1 . . 1 . . Reactor 13 | . . . . . . . . . . . . . . . . . . . . . 1 . 5 3 1 1 2 . Propulsion 57 | 2 2 2 . . 7 4 11 1 . . . . 4 1 9 2 . . . 1 . . 2 3 1 1 . 4 Treads 47 | 2 2 . . . . 3 11 1 . . . . 4 1 9 2 . . . 1 . . 2 3 1 1 . 4 Leg 10 | . . 2 . . 7 1 . . . . . . . . . . . . . . . . . . . . . . Wheel . | . . . . . . . . . . . . . . . . . . . . . . . . . . . . . Hover . | . . . . . . . . . . . . . . . . . . . . . . . . . . . . . Flight . | . . . . . . . . . . . . . . . . . . . . . . . . . . . . . Utility 130 | 2 7 . . . 3 2 2 2 . 1 . . 11 2 6 2 . . . 8 5 9 11 14 15 6 13 9 Device 74 | 1 1 . . . 2 2 . . . 1 . . 7 2 3 . . . . 3 3 8 6 10 9 4 5 7 Storage 14 | 1 6 . . . . . 2 1 . . . . . . . . . . . . . . . 1 3 . . . Processor 8 | . . . . . . . . . . . . . 2 . . . . . . 1 1 . 1 . . 1 2 . Hackware 3 | . . . . . . . . . . . . . . . . . . . . . . . 1 . . . 2 . Protection 31 | . . . . . 1 . . 1 . . . . 2 . 3 2 . . . 4 1 1 3 3 3 1 4 2 Artifact . | . . . . . . . . . . . . . . . . . . . . . . . . . . . . . Weapon 138 | 2 5 2 . 2 10 6 10 3 2 . 1 . 17 4 3 4 . . . 7 2 2 16 8 10 7 5 10 Energy Gun 13 | 1 2 . . . 1 1 5 1 . . . . 1 . . 1 . . . . . . . . . . . . Energy Cannon 12 | . . . . . 1 1 . . . . . . 1 . . . . . . 1 . . 1 1 1 . 1 4 Ballistic Gun 94 | 1 2 . . 2 7 2 3 . 1 . 1 . 12 3 3 3 . . . 6 2 2 12 7 9 6 4 6 Ballistic Cannon . | . . . . . . . . . . . . . . . . . . . . . . . . . . . . . Launcher 3 | . . . . . . . . . . . . . . . . . . . . . . . 2 . . 1 . . Special Weapon 1 | . . . . . . . . . . . . . . . . . . . . . . . 1 . . . . . Impact Weapon . | . . . . . . . . . . . . . . . . . . . . . . . . . . . . . Slashing Weapon 15 | . 1 2 . . 1 2 2 2 1 . . . 3 1 . . . . . . . . . . . . . . Piercing Weapon . | . . . . . . . . . . . . . . . . . . . . . . . . . . . . . Special Melee Weapon . | . . . . . . . . . . . . . . . . . . . . . . . . . . . . . Unidentified Prototypes 14 | . . . . . . . 1 1 . . . . 2 1 . 4 . . . 1 . 1 1 . 1 . 1 . Parts Lost 30 | . 1 1 . . 8 1 . . . . . . . . . . . . . . 1 . . 1 3 4 . 10 Power 3 | . . . . . 2 . . . . . . . . . . . . . . . . . . . . . . 1 Propulsion 2 | . . 1 . . . . . . . . . . . . . . . . . . . . . . . 1 . . Utility 9 | . . . . . . . . . . . . . . . . . . . . . 1 . . 1 2 1 . 4 Weapon 16 | . 1 . . . 6 1 . . . . . . . . . . . . . . . . . . 1 2 . 5 Highest Loss Streak 9 | . 1 1 . . 2 1 . . . . . . . . . . . . . . 1 . . 1 3 4 . 9 Average Slot Usage (%) 87 | . 98 99 100 100 96 94 98 92 92 92 92 92 90 87 88 78 76 76 76 75 77 78 79 80 81 84 85 74 Engine 3 | . 14 14 14 14 2 1 9 7 7 7 7 7 . . . . . . . . . . . . . . . . Core 2 | . . . . . 4 7 . . . . . . 5 5 5 5 5 5 5 5 4 . 1 . . . 4 3 Reactor 2 | . . . . . . . . . . . . . . . . . . . . . . 5 7 9 8 7 4 3 Treads 14 | . 27 24 . . . 16 27 30 30 30 30 30 26 22 23 13 11 11 11 10 10 10 9 9 8 8 8 7 Leg 3 | . . 3 28 28 26 10 . . . . . . . . . . . . . . . . . . . . . . Device 9 | . 2 . . . 8 9 9 7 7 7 7 7 10 10 6 5 5 5 5 7 9 10 11 12 15 14 17 19 Storage 10 | . 25 28 28 28 18 18 18 7 7 7 7 7 6 5 5 5 5 5 5 5 5 5 4 4 5 4 4 3 Processor 4 | . . . . . . . . . . . . . 5 5 5 5 5 5 5 5 10 10 9 9 8 8 10 10 Protection 4 | . . . . . . . . 7 7 7 7 7 6 5 9 11 11 11 11 9 5 5 4 4 4 9 4 3 Energy Gun 1 | . 7 . . . 1 1 8 7 2 . . . . . . . . . . . . . . . . . . . Ballistic Gun 24 | . 16 13 . 2 32 17 24 20 23 23 28 30 23 29 29 29 29 29 29 30 31 31 27 27 29 29 29 23 Slashing Weapon 3 | . 3 14 28 25 1 9 1 2 4 7 1 . 2 . . . . . . . . . . . . . . . Naked Turns . | . . . . . . . . . . . . . . . . . . . . . . . . . . . . . Heaviest Build 122 | 12 70 71 71 71 84 84 85 36 36 37 37 37 50 58 60 60 60 60 60 73 64 67 87 109 108 122 96 112 Greatest Support 160 | 40 40 40 20 20 45 60 66 88 88 88 88 88 92 90 115 160 160 160 160 160 150 150 150 150 155 155 150 150 Greatest Overweight (x) 3 | . 1 3 3 3 3 2 1 . . . . . . . . . . . . . . . . 1 . . . 3 Average Overweight (x) . | . . 1 3 3 1 1 1 . . . . . . . . . . . . . . . . . . . . . Largest Inventory Capacity 24 | 6 20 20 20 20 20 20 20 24 24 24 24 24 24 24 24 24 24 24 24 24 24 24 24 24 24 24 24 24 Average Capacity 22 | 5 10 20 20 20 20 20 20 23 24 24 24 24 24 24 24 24 24 24 24 24 24 24 24 24 24 24 24 20 Most Carried 24 | 4 13 20 20 20 20 20 20 20 20 23 24 24 24 24 24 24 24 24 24 24 24 24 24 24 24 24 24 24 Average Carried 21 | 2 8 17 19 19 19 19 19 16 20 20 23 24 23 23 23 23 24 24 24 23 23 23 22 23 23 20 23 19 Final Capacity 24 | 6 20 20 20 20 20 20 20 24 24 24 24 24 24 24 24 24 24 24 24 24 24 24 24 24 24 24 24 4 Final Carried 24 | 4 12 20 20 20 20 19 20 20 20 23 24 24 24 24 24 24 24 24 24 24 24 24 24 23 21 24 24 4 Class Distribution -------------------- 37% | Scavenger-Executioner 12% | Hauler-Mutant 8% | Scavenger-Tank 7% | Scavenger-Skirmisher 7% | Hauler-Tank 7% | Hauler-Skirmisher 6% | Mutant 3% | Hauler-Executioner 3% | Commander-Tank 3% | Hauler-Gunner Dominant Class ---------------- Mutant | -10/Materials Hauler-Mutant | -10/Mines Hauler-Mutant | -10/Exiles Hauler-Mutant | -9/Mines Scavenger-Skirmisher | -8/Materials Scavenger-Mutant | -8/Garrison Scavenger-Skirmisher | -8/Materials Hauler-Skirmisher | -7/Factory Hauler-Skirmisher | -7/Garrison Hauler-Skirmisher | -7/Factory Hauler-Tank | -7/Lower Caves Hauler-Tank | -7/Lower Caves Hauler-Gunner | -6/Factory Scavenger-Tank | -5/Factory Scavenger-Tank | -5/Extension Hauler-Tank | -5/Cetus Commander-Tank | -5/Archives Commander-Tank | -5/Hub_04(d) Hauler-Tank | -5/Garrison Hauler-Executioner | -4/Factory Scavenger-Executioner | -4/Garrison Scavenger-Executioner | -4/Factory Scavenger-Executioner | -3/Research Scavenger-Executioner | -3/Armory Scavenger-Executioner | -2/Research Scavenger-Executioner | -2/Garrison Scavenger-Executioner | -2/Research Scavenger-Executioner | -1/Access Resources | -11 -10 -10 -10 -9 -8 -8 -8 -7 -7 -7 -7 -7 -6 -5 -5 -5 -5 -5 -5 -4 -4 -4 -3 -3 -2 -2 -2 -1 ----------- Run | Scr Mat Min Exi Min Mat Gar Mat Fac Gar Fac Low Low Fac Fac Ext Cet Arc Hub Gar Fac Gar Fac Res Arm Res Gar Res Acc Matter Collected 16566 | 285 243 98 60 52 478 119 621 198 . . 250 43 660 158 1166 520 40 64 56 418 945 275 1484 2085 2253 713 945 2337 Remotely 145 | 121 24 . . . . . . . . . . . . . . . . . . . . . . . . . . . Salvage Created 25510 | 53 499 213 . 84 564 461 966 186 . . 430 43 936 482 2125 568 . 187 61 884 1122 340 1273 3753 4392 669 1423 3796 Parts 1114 | 1 26 14 . 2 19 20 46 10 . . 22 2 32 27 109 27 . 2 4 36 51 18 72 142 192 34 62 144 Haulers Intercepted 18 | . 2 . . . 2 . 3 1 . . . . 1 . 3 . . . . 1 . . . . 1 . 1 3 Recyclers Shooed 14 | . 1 1 . . . . . . . . . . 1 1 3 . . . . . . . 1 . 4 . 1 1 Parts Field Recycled . | . . . . . . . . . . . . . . . . . . . . . . . . . . . . . Retrieved Matter . | . . . . . . . . . . . . . . . . . . . . . . . . . . . . . Parts Self-Destructed 22 | . . . . . . . . . . . 21 1 . . . . . . . . . . . . . . . . Prevented . | . . . . . . . . . . . . . . . . . . . . . . . . . . . . . Kills | -11 -10 -10 -10 -9 -8 -8 -8 -7 -7 -7 -7 -7 -6 -5 -5 -5 -5 -5 -5 -4 -4 -4 -3 -3 -2 -2 -2 -1 ------- Run | Scr Mat Min Exi Min Mat Gar Mat Fac Gar Fac Low Low Fac Fac Ext Cet Arc Hub Gar Fac Gar Fac Res Arm Res Gar Res Acc Combat Hostiles Destroyed 309 | . 7 10 . 1 8 11 14 3 . . 10 1 6 6 18 11 . 3 1 10 20 3 19 52 42 10 10 33 Melee 12 | . . 2 . . . 9 . . . . . . . . . . . . . . . . . . . . . 1 Guns 274 | . 7 8 . 1 7 . 14 3 . . 10 1 5 6 18 11 . 3 1 7 20 3 10 52 42 5 10 30 Cannons 4 | . . . . . 1 2 . . . . . . 1 . . . . . . . . . . . . . . . AOE 16 | . . . . . . . . . . . . . . . . . . . . 3 . . 9 . . 2 . 2 Classes Destroyed 20 | 1 4 1 . 1 2 . 3 . . . . 1 . . 2 1 . . . . . . . 3 1 . . . Worker 15 | . . . . . . . 2 . . . . . . 1 1 . . . . 1 . . 1 . 5 . 2 2 Builder 13 | . . . . 1 . . . . . . . . . 1 4 . . . . 1 . . 1 . 1 . 2 2 Tunneler 4 | . . . . . . . . . . . . . . . 1 . . . . 1 . 1 . . 1 . . . Hauler 18 | . 2 . . . 2 . 3 1 . . . . 1 . 3 . . . . 1 . . . . 1 . 1 3 Recycler 33 | 1 2 . . . 1 . 1 . . . . . 3 1 4 . . . . 2 . 1 4 . 5 . 2 6 Carrier 2 | . . . . . . . . . . . . . . . . . . . . . . . . 1 1 . . . Mechanic 2 | . . . . . . . . . . . . . . . . . . . . . . . . 1 1 . . . Operator 4 | . 1 . . . . . . . . . . . . . 2 . . . . . . . . . . . 1 . Watcher 11 | . . . . . . . 1 . . . . . . . 2 . . . . . . . . 3 2 . 1 2 Swarmer 68 | . 3 6 . . . 3 . 1 . . 3 . . 4 6 4 . . . 4 8 . 10 8 5 3 . . Saboteur 3 | . . . . . . . . . . . . . . . . . . . . . . . . 2 1 . . . Grunt 115 | . 4 2 . 1 5 6 7 2 . . 6 . 2 . 8 2 . 2 . 3 6 2 . 19 11 2 6 19 Brawler 5 | . . . . . . . . . . . . . . . . 1 . . . . . 1 . . 2 . . 1 Duelist 5 | . . . . . . . 1 . . . 1 . . . . . . . . . . . . 1 . . . 2 Protector 2 | . . . . . . . . . . . . . . . . . . . . . . . . . 1 . . 1 Sentry 40 | . . . . . 2 2 6 . . . . . 3 2 2 . . 1 . 1 3 . 2 7 7 . 1 1 Hunter 22 | . . . . . 1 . . . . . . . 1 . . 1 . . 1 . . . . 4 9 4 1 . Programmer 42 | . . . . . . . . . . . . 1 . . . 1 . . . 2 2 . 7 11 6 1 3 8 Behemoth 4 | . . . . . . . . . . . . . . . 2 . . . . . 1 . . . . . . 1 Cetus Guard 2 | . . . . . . . . . . . . . . . . 2 . . . . . . . . . . . . Assembled 2 | . . 2 . . . . . . . . . . . . . . . . . . . . . . . . . . Thug 1 | . . . . . . . . . . . . . . . 1 . . . . . . . . . . . . . Butcher 1 | . . . . . . . . . . . . . . . 1 . . . . . . . . . . . . . Best Kill Streak 29 | 1 3 3 . 1 3 6 5 3 . . 4 1 4 4 9 4 . 3 1 12 10 3 10 17 29 7 5 18 Combat Bots Only 17 | . 3 3 . 1 3 6 3 3 . . 4 1 2 4 3 4 . 3 1 9 10 3 8 17 8 7 3 11 Max Kills in Single Turn 5 | 1 1 1 . 1 1 1 2 1 . . 2 1 1 2 3 2 . 2 1 3 3 1 2 3 4 2 2 5 Gunslinging 2 | . . . . . . . . . . . 1 . . 1 1 1 . . . 1 2 . 1 2 1 1 . . Exploded 2 | . . . . . . . . . . . . . . . . . . . . 2 . . 2 . . 2 . 2 Melee 1 | . . 1 . . . 1 . . . . . . . . . . . . . . . . . . . . . 1 Uniques/NPCs Destroyed . | . . . . . . . . . . . . . . . . . . . . . . . . . . . . . Combat | -11 -10 -10 -10 -9 -8 -8 -8 -7 -7 -7 -7 -7 -6 -5 -5 -5 -5 -5 -5 -4 -4 -4 -3 -3 -2 -2 -2 -1 -------- Run | Scr Mat Min Exi Min Mat Gar Mat Fac Gar Fac Low Low Fac Fac Ext Cet Arc Hub Gar Fac Gar Fac Res Arm Res Gar Res Acc Damage Taken 20209 | . 345 363 . 13 1253 707 491 105 . . 375 109 386 106 618 283 54 381 55 590 1552 27 1535 2431 2556 1134 384 4356 Core 1272 | . 45 68 . . 115 105 95 17 . . 30 . . 9 42 23 . 20 . 17 39 12 50 35 110 11 23 406 Absorbed by Shields 311 | . . . . . . . . . . . . . 20 40 44 176 . . . . . . . . . 31 . . Reduced by Siege Mode 526 | . . . . . . . . . . . . . . . . . . . . . 138 . . 242 70 . . 76 Core Remaining (%) 83 | 100 . . . 54 . . 42 . . . . 93 100 . . . . . 90 . . 94 . 93 . . 90 74 Volleys Fired 619 | 5 39 17 . 5 45 11 38 4 . . 15 5 22 7 48 21 2 4 2 12 26 7 45 58 63 14 26 78 Largest 7 | 2 2 2 . 2 4 1 4 4 . . 4 4 4 5 5 5 5 5 5 6 6 6 6 6 7 7 7 7 Hottest 248 | 70 70 40 . 40 124 56 136 131 . . 99 99 120 151 153 155 155 155 155 194 194 182 198 203 248 243 235 241 Shots Fired 3030 | 10 78 34 . 10 158 11 147 16 . . 60 20 78 34 240 105 10 20 10 72 155 42 226 340 431 66 176 481 Gun 2986 | 10 78 34 . 10 154 . 147 16 . . 60 20 75 34 240 105 10 20 10 72 155 42 217 339 430 61 175 472 Cannon 31 | . . . . . 4 11 . . . . . . 3 . . . . . . . . . 1 1 1 . 1 9 Launcher 12 | . . . . . . . . . . . . . . . . . . . . . . . 7 . . 5 . . Special 1 | . . . . . . . . . . . . . . . . . . . . . . . 1 . . . . . Kinetic 2898 | 5 44 34 . 10 145 . 111 12 . . 60 20 75 34 240 105 10 20 10 72 155 42 217 339 430 61 175 472 Thermal 101 | 5 34 . . . 9 . 36 4 . . . . . . . . . . . . . . 1 1 1 . 1 9 Explosive 7 | . . . . . . . . . . . . . . . . . . . . . . . 7 . . . . . Electromagnetic 23 | . . . . . 4 11 . . . . . . 3 . . . . . . . . . . . . 5 . . Robot Hit Streak 45 | 2 10 9 . 5 8 15 24 18 . . 13 13 35 35 21 37 7 12 5 18 33 10 27 27 45 28 23 27 Robot Miss Streak 6 | 1 3 2 . 4 5 . 3 2 . . 2 2 1 3 5 3 2 1 1 1 2 4 3 3 3 4 3 6 Penetration Max 2 | . . . . . . . 1 . . . 1 . . 1 2 1 1 . . 1 1 1 1 2 2 1 1 1 Secondary Targets 79 | . 2 1 . . 3 . . 1 . . 4 . 1 2 3 2 . 1 . 3 8 1 3 21 10 2 . 11 Max Gunslinging Chain 2 | . 1 1 . . 1 . . 1 . . 1 . 1 1 1 1 . 1 . 1 2 1 2 2 2 1 . 1 Shots Hit Robots 2093 | 6 61 26 . 9 99 33 101 14 . . 43 15 68 29 150 79 7 16 8 50 114 21 143 253 276 45 98 329 Core Hits 875 | 2 24 13 . 2 31 13 35 7 . . 18 2 27 19 82 26 2 7 1 26 38 9 57 120 125 24 41 124 Critical Hits 274 | . . 1 . 1 . 1 3 . . . 1 . 2 1 3 3 . 1 1 10 16 3 15 67 76 6 20 43 Critical Kills 110 | . . . . . . 1 1 . . . 1 . . 1 1 . . 1 1 2 6 2 5 33 33 3 6 13 Critical Parts Destroyed 134 | . . 1 . 1 . . 2 . . . . . 2 . 1 3 . . . 8 4 . 8 28 35 3 13 25 Melee Attacks 95 | . 8 7 . 3 1 43 4 7 15 . . . 7 . . . . . . . . . . . . . . . Impact . | . . . . . . . . . . . . . . . . . . . . . . . . . . . . . Slashing 95 | . 8 7 . 3 1 43 4 7 15 . . . 7 . . . . . . . . . . . . . . . Piercing . | . . . . . . . . . . . . . . . . . . . . . . . . . . . . . Sneak Attacks 8 | . 3 . . 3 1 . . 1 . . . . . . . . . . . . . . . . . . . . Combat Hostiles . | . . . . . . . . . . . . . . . . . . . . . . . . . . . . . Follow-up Attacks 8 | . . 1 . . . 7 . . . . . . . . . . . . . . . . . . . . . . Damage Inflicted 53523 | 91 932 346 . 220 1240 950 2069 356 . . 739 332 1288 590 4346 1796 218 416 131 1997 2610 448 3796 7613 6972 1508 2765 9754 Guns 48401 | 91 684 219 . 78 1061 . 1755 256 . . 739 332 1214 537 4328 1796 218 416 131 1303 2610 434 2845 7561 6962 878 2751 9202 Cannons 335 | . . . . . 92 175 . . . . . . 68 . . . . . . . . . . . . . . . Explosions 3135 | . . . . . . . 282 . . . . . . . . . . . . 694 . . 949 42 . 630 . 538 Melee 1433 | . 235 94 . 142 87 775 . 100 . . . . . . . . . . . . . . . . . . . . Ramming 219 | . 13 33 . . . . 32 . . . . . 6 53 18 . . . . . . 14 2 10 10 . 14 14 Kinetic 47414 | 53 429 219 . 78 985 . 1210 183 . . 739 332 1214 537 4328 1796 218 416 131 1303 2610 434 2845 7561 6962 878 2751 9202 Thermal 2217 | 38 255 . . . 76 . 827 73 . . . . . . . . . . . 694 . . . . . 254 . . Explosive 1529 | . . . . . . . . . . . . . . . . . . . . . . . 949 42 . . . 538 Electromagnetic 711 | . . . . . 92 175 . . . . . . 68 . . . . . . . . . . . . 376 . . Impact . | . . . . . . . . . . . . . . . . . . . . . . . . . . . . . Slashing 1433 | . 235 94 . 142 87 775 . 100 . . . . . . . . . . . . . . . . . . . . Piercing . | . . . . . . . . . . . . . . . . . . . . . . . . . . . . . Highest Corruption 14 | . . . . . . . . 1 1 1 1 1 . 1 1 1 1 1 1 2 1 1 10 6 6 4 4 14 Average Corruption 2 | . . . . . . . . 1 1 1 1 1 . 1 1 1 1 1 1 1 1 1 7 4 3 1 1 3 Corruption Purged 26 | . . . . . . . . . . . . . . . . . . . . 1 1 1 6 6 4 4 . 3 Effects 162 | . . . . . . . . 1 . 1 3 1 . . 12 4 1 . . 7 5 . 48 29 35 4 2 9 Message Errors 28 | . . . . . . . . . . 1 1 . . . 4 2 . . . 2 1 . 8 5 2 . 1 1 Matter Fused 20 | . . . . . . . . . . . . . . . . . . . . . . . 7 4 7 1 . 1 Heat Flow Errors 6 | . . . . . . . . . . . . . . . . . . . . . . . 1 2 3 . . . Energy Discharges 14 | . . . . . . . . 1 . . . . . . 1 2 . . . 1 2 . 3 1 3 . . . Parts Rejected 3 | . . . . . . . . . . . . . . . . . . . . . . . . 1 1 . . 1 Data Loss (minor) 19 | . . . . . . . . . . . . 1 . . 3 . 1 . . 2 1 . 5 2 . 3 . 1 Misfires 5 | . . . . . . . . . . . . . . . . . . . . . . . 4 . 1 . . . Targeting Errors 58 | . . . . . . . . . . . 2 . . . 4 . . . . 2 . . 19 11 15 . 1 4 Weapon Failures 9 | . . . . . . . . . . . . . . . . . . . . . 1 . 1 3 3 . . 1 Overload Shots 2 | . . . . . . . . . . . . . . . . . . . . . . . . . . . . 2 Overflow Damage 237 | . 26 2 . 27 . 17 72 . . . . . . . . . . . . 43 . . 19 . . 17 . 14 Projectiles . | . . . . . . . . . . . . . . . . . . . . . . . . . . . . . Explosions 165 | . . . . . . . 72 . . . . . . . . . . . . 43 . . 19 . . 17 . 14 Melee 72 | . 26 2 . 27 . 17 . . . . . . . . . . . . . . . . . . . . . . Knockbacks 2 | . . . . . . . . . . . . . . 1 . . . . . . . . . . . . . 1 Impact 2 | . . . . . . . . . . . . . . 1 . . . . . . . . . . . . . 1 Kinetic . | . . . . . . . . . . . . . . . . . . . . . . . . . . . . . Secondary . | . . . . . . . . . . . . . . . . . . . . . . . . . . . . . Self-Inflicted Damage 146 | . . . . . . . . . . . . . . . . . . . . . . . 26 . . 29 . 91 Shots 5 | . . . . . . . . . . . . . . . . . . . . . . . 1 . . 3 . 1 Rammed 32 | . 6 4 . . . . 2 . . . . . 1 6 3 . . . . . . 1 1 1 3 . 1 3 Targets Rammed 35 | . 6 4 . . . . 3 . . . . . 1 6 3 . . . . . . 2 1 1 3 . 1 4 Kicked . | . . . . . . . . . . . . . . . . . . . . . . . . . . . . . Crushed 3 | . . . . . . . 1 . . . . . . . . . . . . . . 1 . . . . . 1 Highest Temperature 390 | 36 90 . . 2 182 8 63 72 . . 6 . 102 24 52 6 . 21 . 9 66 157 373 342 293 390 144 117 Average Temperature 49 | 16 39 . . 2 42 8 19 36 . . 4 . 25 9 11 3 . 12 . 9 32 47 105 54 77 95 59 31 Received Heat Transfer 3181 | . 120 51 . 9 504 324 180 36 . . 171 . 123 . 104 20 . 105 . 81 207 . 45 336 243 36 27 459 Effects 2 | . . . . . . . . . . . . . . . . . . . . . . . 1 1 . . . . Matter Decay 1 | . . . . . . . . . . . . . . . . . . . . . . . . 1 . . . . Damage (minor) 1 | . . . . . . . . . . . . . . . . . . . . . . . 1 . . . . . Siege Activations 14 | . . . . . . . . . . . . . . . . . . . . . 1 . . 5 6 . 1 1 Total Turns 349 | . . . . . . . . . . . . . . . . . . . . . 43 . . 128 145 . 4 29 Longest Duration 53 | . . . . . . . . . . . . . . . . . . . . . 43 . . 49 53 . 4 29 Robots Corrupted 3 | . . . . . . . . . . . . . . . . . . . . . . . . . . 3 . . Combat Hostiles 3 | . . . . . . . . . . . . . . . . . . . . . . . . . . 3 . . Parts Fried 11 | . . . . . 1 2 . . . . . . 1 . 1 1 . . . . . . . . . 5 . . Impact Corruptions 1 | . . 1 . . . . . . . . . . . . . . . . . . . . . . . . . . Robots Melted . | . . . . . . . . . . . . . . . . . . . . . . . . . . . . . Combat Hostiles . | . . . . . . . . . . . . . . . . . . . . . . . . . . . . . Parts Melted 3 | . . . . . . . 2 . . . . . . . . . . . . . . . . . 1 . . . Heat Transferred 2939 | 111 622 . . . 185 . 1273 148 . . . . . . . . . . . 450 . . . . . 150 . . Parts Sabotaged . | . . . . . . . . . . . . . . . . . . . . . . . . . . . . . Parts Stolen . | . . . . . . . . . . . . . . . . . . . . . . . . . . . . . Parts Stripped . | . . . . . . . . . . . . . . . . . . . . . . . . . . . . . Power Chain Reactions 2 | . . . . . . . . . . . . . . . . . . . . . . . . . . 2 . . Missiles Intercepted . | . . . . . . . . . . . . . . . . . . . . . . . . . . . . . Alert | -11 -10 -10 -10 -9 -8 -8 -8 -7 -7 -7 -7 -7 -6 -5 -5 -5 -5 -5 -5 -4 -4 -4 -3 -3 -2 -2 -2 -1 ------- Run | Scr Mat Min Exi Min Mat Gar Mat Fac Gar Fac Low Low Fac Fac Ext Cet Arc Hub Gar Fac Gar Fac Res Arm Res Gar Res Acc Peak Influence 1469 | 5 178 177 . 35 223 414 470 331 234 122 . . 538 363 591 601 260 200 185 406 744 473 584 1348 1454 1469 1161 1319 Average Influence 410 | 1 61 87 . 2 104 210 290 280 232 122 . . 188 303 194 389 237 63 147 164 439 432 351 530 764 1193 1045 1025 Maximum Alert Level 4 | . . . . . 1 2 2 1 1 . . . 2 1 2 2 1 1 . 2 3 2 2 4 4 4 4 4 Low Security (%) 36 | 100 100 100 . 100 85 36 19 . . 100 . . 61 3 66 15 12 84 100 74 . . 22 10 . . . . Level 1 24 | . . . . . 14 54 64 100 100 . . . 23 96 18 38 87 15 . 3 53 22 14 51 . . . . Level 2 19 | . . . . . . 9 15 . . . . . 15 . 15 46 . . . 21 38 77 62 12 51 . . 6 Level 3 11 | . . . . . . . . . . . . . . . . . . . . . 7 . . 5 39 56 60 47 Level 4 8 | . . . . . . . . . . . . . . . . . . . . . . . . 20 9 43 39 45 Level 5 . | . . . . . . . . . . . . . . . . . . . . . . . . . . . . . High Security . | . . . . . . . . . . . . . . . . . . . . . . . . . . . . . Max Security . | . . . . . . . . . . . . . . . . . . . . . . . . . . . . . Squads Dispatched 46 | . 1 . . . 2 . 2 1 . . . . 2 . 1 . . 2 . 2 . . 3 4 13 . 2 11 Investigation 7 | . 1 . . . 2 . . 1 . . . . . . . . . . . 1 . . . 1 . . . 1 Extermination 12 | . . . . . . . . . . . . . . . . . . . . 1 . . 2 2 3 . 1 3 Reinforcement 10 | . . . . . . . 2 . . . . . 1 . . . . 1 . . . . 1 . 1 . 1 3 Assault 11 | . . . . . . . . . . . . . 1 . 1 . . . . . . . . 1 4 . . 4 Garrison 6 | . . . . . . . . . . . . . . . . . . 1 . . . . . . 5 . . . Intercept . | . . . . . . . . . . . . . . . . . . . . . . . . . . . . . Construction Impeded 1 | . . . . . . . . . . . . . . . . . . . . . . . . . . . . 1 Haulers Reinforced 3 | . . . . . . . . . . . . . 1 . . . . . . . . . . . 1 . . 1 Stealth | -11 -10 -10 -10 -9 -8 -8 -8 -7 -7 -7 -7 -7 -6 -5 -5 -5 -5 -5 -5 -4 -4 -4 -3 -3 -2 -2 -2 -1 --------- Run | Scr Mat Min Exi Min Mat Gar Mat Fac Gar Fac Low Low Fac Fac Ext Cet Arc Hub Gar Fac Gar Fac Res Arm Res Gar Res Acc Distress Signals 19 | . . 1 . . . . 4 1 . . . . . . 3 1 . . . . . 1 1 3 . . 2 2 Communications Jammed 125 | . . . . . . . . . . . . . . . . . . . . . . . 10 . 86 . . 29 Distress Signals 120 | . . . . . . . . . . . . . . . . . . . . . . . 10 . 82 . . 28 Times Spotted 418 | . 18 17 . 1 13 15 21 5 . . 10 1 8 9 23 11 . 3 1 6 20 4 22 57 56 15 16 66 Peak Tracking Total 18 | . 4 18 . 1 5 5 4 3 . . 4 1 3 5 4 5 1 2 1 5 8 4 7 8 6 5 3 18 Tactical Retreats 24 | . . 2 . . 2 5 . . . . . . . . 2 . . . . . 1 . 1 1 3 2 . 5 Traps | -11 -10 -10 -10 -9 -8 -8 -8 -7 -7 -7 -7 -7 -6 -5 -5 -5 -5 -5 -5 -4 -4 -4 -3 -3 -2 -2 -2 -1 ------- Run | Scr Mat Min Exi Min Mat Gar Mat Fac Gar Fac Low Low Fac Fac Ext Cet Arc Hub Gar Fac Gar Fac Res Arm Res Gar Res Acc Traps Triggered 14 | . . . . . . . 1 1 . . . . . 1 . . . . . 2 . . 1 . 4 2 1 1 Indirectly 1 | . . . . . . . . . . . . . . . . . . . . . . . . . . 1 . . Trap Hack Attempts . | . . . . . . . . . . . . . . . . . . . . . . . . . . . . . Triggered . | . . . . . . . . . . . . . . . . . . . . . . . . . . . . . Disarmed . | . . . . . . . . . . . . . . . . . . . . . . . . . . . . . Reprogrammed 7 | . 3 . . . 4 . . . . . . . . . . . . . . . . . . . . . . . Reused 1 | . . . . . 1 . . . . . . . . . . . . . . . . . . . . . . . Traps Extracted . | . . . . . . . . . . . . . . . . . . . . . . . . . . . . . Installed . | . . . . . . . . . . . . . . . . . . . . . . . . . . . . . Triggered 2 | . . . . . 1 . . . . . 1 . . . . . . . . . . . . . . . . . Machines | -11 -10 -10 -10 -9 -8 -8 -8 -7 -7 -7 -7 -7 -6 -5 -5 -5 -5 -5 -5 -4 -4 -4 -3 -3 -2 -2 -2 -1 ---------- Run | Scr Mat Min Exi Min Mat Gar Mat Fac Gar Fac Low Low Fac Fac Ext Cet Arc Hub Gar Fac Gar Fac Res Arm Res Gar Res Acc Machines Disabled 46 | . . . . . 1 1 6 1 . . . . 5 1 5 2 3 . . 8 1 . 2 7 1 . . 2 Max in Single Turn 5 | . . . . . 1 1 5 1 . . . . 2 1 1 1 1 . . 4 1 . 1 1 1 . . 1 Garrison Access 4 | . . . . . . . . . . . . . 1 1 . . . . . . . . 1 . . . . 1 Garrison Relay 1 | . . . . . . 1 . . . . . . . . . . . . . . . . . . . . . . Energy Cycler 1 | . . . . . . . . . . . . . . . . . . . . . . . . 1 . . . . Machines Sabotaged . | . . . . . . . . . . . . . . . . . . . . . . . . . . . . . Garrisons Compromised . | . . . . . . . . . . . . . . . . . . . . . . . . . . . . . Overloaded Fab Kills . | . . . . . . . . . . . . . . . . . . . . . . . . . . . . . Fab Network Shutdowns 1 | . . . . . . . . . . . . . 1 . . . . . . . . . . . . . . . Hacking | -11 -10 -10 -10 -9 -8 -8 -8 -7 -7 -7 -7 -7 -6 -5 -5 -5 -5 -5 -5 -4 -4 -4 -3 -3 -2 -2 -2 -1 --------- Run | Scr Mat Min Exi Min Mat Gar Mat Fac Gar Fac Low Low Fac Fac Ext Cet Arc Hub Gar Fac Gar Fac Res Arm Res Gar Res Acc Machines Accessed 49 | . 9 . 2 . 2 . 3 4 . . . . 5 4 7 3 . 1 . 1 . 1 2 1 2 . 1 1 Terminals 28 | . 7 . . . 1 . 1 1 . . . . 2 2 7 3 . . . . . . 1 1 1 . 1 . Fabricators 3 | . . . . . . . . 1 . . . . 1 . . . . . . . . 1 . . . . . . Repair Stations 4 | . 1 . . . . . 1 . . . . . 1 1 . . . . . . . . . . . . . . Recycling Units 1 | . 1 . . . . . . . . . . . . . . . . . . . . . . . . . . . Scanalyzers 2 | . . . . . . . 1 1 . . . . . . . . . . . . . . . . . . . . Garrison Access 9 | . . . . . 1 . . 1 . . . . 1 1 . . . 1 . 1 . . 1 . 1 . . 1 Total Hacks 139 | . 40 . 2 . 12 . 11 9 . . . . 8 8 24 8 . 1 . 1 . 3 3 3 3 . 2 1 Successful 84 | . 29 . 2 . 5 . 9 4 . . . . 3 5 14 4 . 1 . 1 . 2 2 . 1 . 1 1 Failed 55 | . 11 . . . 7 . 2 5 . . . . 5 3 10 4 . . . . . 1 1 3 2 . 1 . Catastrophic 6 | . . . . . . . . 1 . . . . 1 1 . 1 . . . . . . . 1 . . 1 . Database Lockouts . | . . . . . . . . . . . . . . . . . . . . . . . . . . . . . Manual 60 | . 19 . 1 . 6 . 2 . . . . . 3 4 13 9 . . . . . . . 3 . . . . Terminals 95 | . 30 . . . 9 . 2 4 . . . . 4 5 24 8 . . . . . . 2 3 2 . 2 . Fabricators 6 | . . . . . . . . 1 . . . . 2 . . . . . . . . 3 . . . . . . Repair Stations 18 | . 8 . . . . . 7 . . . . . 1 2 . . . . . . . . . . . . . . Recycling Units 2 | . 2 . . . . . . . . . . . . . . . . . . . . . . . . . . . Scanalyzers 5 | . . . . . . . 2 3 . . . . . . . . . . . . . . . . . . . . Garrison Access 11 | . . . . . 3 . . 1 . . . . 1 1 . . . 1 . 1 . . 1 . 1 . . 1 Terminal Hacks 34 | . 12 . 2 . 3 . . . . . . . . 2 9 4 . . . . . . 1 . . . 1 . Record 2 | . . . 1 . . . . . . . . . . . . . . . . . . . 1 . . . . . Part Schematic 1 | . 1 . . . . . . . . . . . . . . . . . . . . . . . . . . . Robot Analysis 4 | . 2 . . . 1 . . . . . . . . . 1 . . . . . . . . . . . . . Prototype ID Bank 5 | . 4 . . . . . . . . . . . . . 1 . . . . . . . . . . . . . Open Door 6 | . . . . . . . . . . . . . . . 5 1 . . . . . . . . . . . . Level Access Points 1 | . . . . . . . . . . . . . . . . . . . . . . . . . . . 1 . Branch Access Points 1 | . . . . . . . . . . . . . . 1 . . . . . . . . . . . . . . Terminal Index 2 | . 1 . . . . . . . . . . . . . 1 . . . . . . . . . . . . . Unreport Threat 4 | . . . . . . . . . . . . . . 1 . 3 . . . . . . . . . . . . Locate Traps 3 | . 2 . . . 1 . . . . . . . . . . . . . . . . . . . . . . . Reprogram Traps 2 | . 1 . . . 1 . . . . . . . . . . . . . . . . . . . . . . . Recall Assault 1 | . . . . . . . . . . . . . . . 1 . . . . . . . . . . . . . Hauler Manifests 1 | . 1 . . . . . . . . . . . . . . . . . . . . . . . . . . . EX-Prototype ID Bank 1 | . . . 1 . . . . . . . . . . . . . . . . . . . . . . . . . Fabricator Hacks 5 | . . . . . . . . 1 . . . . 2 . . . . . . . . 2 . . . . . . Load Schematic 2 | . . . . . . . . . . . . . 1 . . . . . . . . 1 . . . . . . Build 3 | . . . . . . . . 1 . . . . 1 . . . . . . . . 1 . . . . . . Repair Station Hacks 16 | . 8 . . . . . 6 . . . . . . 2 . . . . . . . . . . . . . . Scan Component 8 | . 4 . . . . . 3 . . . . . . 1 . . . . . . . . . . . . . . Repair 8 | . 4 . . . . . 3 . . . . . . 1 . . . . . . . . . . . . . . Recycling Unit Hacks 1 | . 1 . . . . . . . . . . . . . . . . . . . . . . . . . . . Retrieve Components 1 | . 1 . . . . . . . . . . . . . . . . . . . . . . . . . . . Scanalyzer 4 | . . . . . . . 2 2 . . . . . . . . . . . . . . . . . . . . Insert Component 2 | . . . . . . . 1 1 . . . . . . . . . . . . . . . . . . . . Analyze 2 | . . . . . . . 1 1 . . . . . . . . . . . . . . . . . . . . Garrison Access Hacks 9 | . . . . . 1 . . 1 . . . . 1 1 . . . 1 . 1 . . 1 . 1 . . 1 Unlock Access 5 | . . . . . 1 . . 1 . . . . . . . . . 1 . 1 . . . . 1 . . . Seal Access 4 | . . . . . . . . . . . . . 1 1 . . . . . . . . 1 . . . . 1 Unauthorized Hacks 15 | . 8 . . . 1 . 1 . . . . . . . 5 . . . . . . . . . . . . . Terminals 14 | . 7 . . . 1 . 1 . . . . . . . 5 . . . . . . . . . . . . . Botnet 12 | . 6 . . . 1 . 1 . . . . . . . 4 . . . . . . . . . . . . . Operators 2 | . 1 . . . . . . . . . . . . . 1 . . . . . . . . . . . . . Fabricators . | . . . . . . . . . . . . . . . . . . . . . . . . . . . . . Repair Stations . | . . . . . . . . . . . . . . . . . . . . . . . . . . . . . Recycling Units 1 | . 1 . . . . . . . . . . . . . . . . . . . . . . . . . . . Tunnel 1 | . 1 . . . . . . . . . . . . . . . . . . . . . . . . . . . Scanalyzers . | . . . . . . . . . . . . . . . . . . . . . . . . . . . . . Garrison Access . | . . . . . . . . . . . . . . . . . . . . . . . . . . . . . Data Cores Recovered 3 | . 1 . . . . . . . . . . . . . 1 . . . . . . . . . . . 1 . Used . | . . . . . . . . . . . . . . . . . . . . . . . . . . . . . Hacking Detections 36 | . 9 . . . 2 . 1 2 . . . . 3 2 7 3 . 1 . . . 1 1 1 2 . 1 . Full Trace Events 3 | . . . . . 1 . . 1 . . . . . . . . . . . . . . . 1 . . . . Feedback Events 1 | . . . . . . . . 1 . . . . . . . . . . . . . . . . . . . . Corruption 1 | . . . . . . . . 1 . . . . . . . . . . . . . . . . . . . . Feedback Blocked . | . . . . . . . . . . . . . . . . . . . . . . . . . . . . . Robot Schematics Acquired . | . . . . . . . . . . . . . . . . . . . . . . . . . . . . . Robots Built . | . . . . . . . . . . . . . . . . . . . . . . . . . . . . . Matter . | . . . . . . . . . . . . . . . . . . . . . . . . . . . . . Time . | . . . . . . . . . . . . . . . . . . . . . . . . . . . . . Total Robot Build Rating . | . . . . . . . . . . . . . . . . . . . . . . . . . . . . . Part Schematics Acquired 3 | . 1 . . . . . 1 1 . . . . . . . . . . . . . . . . . . . . Parts Built 6 | . . . . . . . . 2 . . . . 2 . . . . . . . . 2 . . . . . . Matter 460 | . . . . . . . . 212 . . . . 124 . . . . . . . . 124 . . . . . . Time 177 | . . . . . . . . 53 . . . . 62 . . . . . . . . 62 . . . . . . Total Part Build Rating 20 | . . . . . . . . 12 . . . . 4 . . . . . . . . 4 . . . . . . Parts Repaired 8 | . 4 . . . . . 3 . . . . . . 1 . . . . . . . . . . . . . . Time 299 | . 104 . . . . . 157 . . . . . . 38 . . . . . . . . . . . . . . Parts Recycled . | . . . . . . . . . . . . . . . . . . . . . . . . . . . . . Recycled Matter . | . . . . . . . . . . . . . . . . . . . . . . . . . . . . . Retrieved Matter . | . . . . . . . . . . . . . . . . . . . . . . . . . . . . . Retrieved Components 9 | . 9 . . . . . . . . . . . . . . . . . . . . . . . . . . . Parts Scanalyzed 2 | . . . . . . . 1 1 . . . . . . . . . . . . . . . . . . . . Part Schematics Acquired 2 | . . . . . . . 1 1 . . . . . . . . . . . . . . . . . . . . Parts Damaged 1 | . . . . . . . 1 . . . . . . . . . . . . . . . . . . . . . Bothacking | -11 -10 -10 -10 -9 -8 -8 -8 -7 -7 -7 -7 -7 -6 -5 -5 -5 -5 -5 -5 -4 -4 -4 -3 -3 -2 -2 -2 -1 ------------ Run | Scr Mat Min Exi Min Mat Gar Mat Fac Gar Fac Low Low Fac Fac Ext Cet Arc Hub Gar Fac Gar Fac Res Arm Res Gar Res Acc Used RIF Installer 1 | . . . . . . 1 . . . . . . . . . . . . . . . . . . . . . . Robots Hacked 1 | . . . . . . . . . . . . . . . . . . . . . . . 1 . . . . . Non-combat 1 | . . . . . . . . . . . . . . . . . . . . . . . 1 . . . . . Combat . | . . . . . . . . . . . . . . . . . . . . . . . . . . . . . Robot Hacks Applied 1 | . . . . . . . . . . . . . . . . . . . . . . . 1 . . . . . map_route 1 | . . . . . . . . . . . . . . . . . . . . . . . 1 . . . . . Relay Couplers Released 7 | . . . . . . 3 . . . . . . . . . . . . . . . . 4 . . . . . Machine Destruction 3 | . . . . . . 3 . . . . . . . . . . . . . . . . . . . . . . Programmers 4 | . . . . . . . . . . . . . . . . . . . . . . . 4 . . . . . Attached 1 | . . . . . . . . . . . . . . . . . . . . . . . 1 . . . . . Robots Rewired 16 | . . . . . . . . . . . . . . . 13 . . . . . . . . . . 3 . . Allies Hacked . | . . . . . . . . . . . . . . . . . . . . . . . . . . . . . Hacks Repelled . | . . . . . . . . . . . . . . . . . . . . . . . . . . . . . Allies | -11 -10 -10 -10 -9 -8 -8 -8 -7 -7 -7 -7 -7 -6 -5 -5 -5 -5 -5 -5 -4 -4 -4 -3 -3 -2 -2 -2 -1 -------- Run | Scr Mat Min Exi Min Mat Gar Mat Fac Gar Fac Low Low Fac Fac Ext Cet Arc Hub Gar Fac Gar Fac Res Arm Res Gar Res Acc Total Allies 26 | . . . . . . . . . . . . . . . 18 5 . . . . . . . . . 3 . . Largest Group 10 | . . . . . . . . . . . . . . . 10 6 6 5 3 . . . . . . 3 2 . Highest-Rated Group 620 | . . . . . . . . . . . . . . . 277 620 620 470 223 . . . . . . 207 138 . Highest-Rated Ally 156 | . . . . . . . . . . . . . . . 156 156 150 94 94 . . . . . . 69 69 . Total Orders 3 | . . . . . . . . . . . . . . . . . . . 1 . . . . . 2 . . . GOTO 1 | . . . . . . . . . . . . . . . . . . . 1 . . . . . . . . . EXPLORE 2 | . . . . . . . . . . . . . . . . . . . . . . . . . 2 . . . Ally Attacks 222 | . . . . . . . . . . . . . . . 105 31 40 8 . . . . . . . 21 17 . Total Damage 6661 | . . . . . . . . . . . . . . . 2239 837 1437 283 . . . . . . . 1076 789 . Kills 31 | . . . . . . . . . . . . . . . 13 5 4 1 . . . . . . . 4 4 . Allies Corrupted . | . . . . . . . . . . . . . . . . . . . . . . . . . . . . . Allies Melted . | . . . . . . . . . . . . . . . . . . . . . . . . . . . . . Intel | -11 -10 -10 -10 -9 -8 -8 -8 -7 -7 -7 -7 -7 -6 -5 -5 -5 -5 -5 -5 -4 -4 -4 -3 -3 -2 -2 -2 -1 ------- Run | Scr Mat Min Exi Min Mat Gar Mat Fac Gar Fac Low Low Fac Fac Ext Cet Arc Hub Gar Fac Gar Fac Res Arm Res Gar Res Acc Robot Analysis Total 4 | . 2 . . . 1 . . . . . . . . . 1 . . . . . . . . . . . . . Derelict Logs Recovered 3 | . . . . 3 . . . . . . . . . . . . . . . . . . . . . . . . Drone Launches 4 | . . . . . . . . . . . . . . . . . . . . . . . . . 4 . . . Drone Recoveries . | . . . . . . . . . . . . . . . . . . . . . . . . . . . . . Exploration | -11 -10 -10 -10 -9 -8 -8 -8 -7 -7 -7 -7 -7 -6 -5 -5 -5 -5 -5 -5 -4 -4 -4 -3 -3 -2 -2 -2 -1 ------------- Run | Scr Mat Min Exi Min Mat Gar Mat Fac Gar Fac Low Low Fac Fac Ext Cet Arc Hub Gar Fac Gar Fac Res Arm Res Gar Res Acc Turns Passed 18106 | 95 1052 583 696 665 467 488 1158 353 156 121 308 224 1072 430 1322 418 415 46 278 679 632 480 1207 849 1462 917 719 814 Spaces Moved 8106 | 49 470 259 329 303 179 187 446 161 73 82 173 141 610 216 596 181 43 19 147 362 204 216 553 353 664 223 393 474 Core 207 | 11 . . . . . . . . . . . . . . . . . . . . . . . . . . . 196 Treads 6986 | 38 470 225 . . . 119 446 161 73 82 173 141 610 216 596 181 43 19 147 362 204 216 553 353 664 223 393 278 Legs 913 | . . 34 329 303 179 68 . . . . . . . . . . . . . . . . . . . . . . Wheels . | . . . . . . . . . . . . . . . . . . . . . . . . . . . . . Hover . | . . . . . . . . . . . . . . . . . . . . . . . . . . . . . Flight . | . . . . . . . . . . . . . . . . . . . . . . . . . . . . . Fastest Speed 50 | 50 160 180 210 210 150 150 165 145 145 145 145 145 145 156 156 160 160 160 160 160 170 170 162 152 152 145 145 50 Average Speed 160 | 135 162 184 210 210 160 177 176 145 145 145 145 145 147 156 156 160 160 160 160 164 170 170 169 162 160 146 145 107 Slowest Speed 220 | 160 180 220 210 210 210 180 180 145 145 145 145 145 156 156 162 163 160 160 160 170 170 170 170 170 170 152 145 200 Overloaded Moves . | . . . . . . . . . . . . . . . . . . . . . . . . . . . . . Propulsion Burnouts . | . . . . . . . . . . . . . . . . . . . . . . . . . . . . . Robots Hopped . | . . . . . . . . . . . . . . . . . . . . . . . . . . . . . Cave-ins Triggered . | . . . . . . . . . . . . . . . . . . . . . . . . . . . . . Exploration Rate (%) 31 | 5 72 47 70 76 20 36 35 6 20 3 41 18 17 7 85 69 66 4 33 10 37 6 17 24 21 36 9 13 Regions Visited 28 Branch Regions 10 Pre-discovered Areas 4 | . 1 . 1 2 . . . . . . . . . . . . . . . . . . . . . . . . Known Exits Taken 7 | . . . . . 1 . . 1 . . . . . 1 . . . 1 . 1 . . . . 1 . 1 . Unknown Exits Taken 16 | 1 1 1 1 1 . . 1 . . 1 1 1 1 . 1 1 1 . . . . 1 1 1 . . . . Scrap Searched 5 | . . 4 . 1 . . . . . . . . . . . . . . . . . . . . . . . . Spaces Dug 41 | . 2 . . . . . 1 6 12 . . . 7 . . . . . . . . . 6 . 1 . 1 5 Terrain Destroyed 311 | . 2 . . . . . 51 6 12 . . . 8 1 9 1 . . . 38 5 4 67 28 21 26 17 15 Melee 28 | . 2 . . . . . 1 6 12 . . . 7 . . . . . . . . . . . . . . . Projectile 96 | . . . . . . . . . . . . . 1 1 9 1 . . . 2 5 4 2 14 21 4 17 15 AOE 187 | . . . . . . . 50 . . . . . . . . . . . . 36 . . 65 14 . 22 . . Actions | -11 -10 -10 -10 -9 -8 -8 -8 -7 -7 -7 -7 -7 -6 -5 -5 -5 -5 -5 -5 -4 -4 -4 -3 -3 -2 -2 -2 -1 --------- Run | Scr Mat Min Exi Min Mat Gar Mat Fac Gar Fac Low Low Fac Fac Ext Cet Arc Hub Gar Fac Gar Fac Res Arm Res Gar Res Acc Total 11685 | 64 660 321 337 316 275 279 737 260 96 84 195 151 740 288 861 261 384 23 184 410 414 306 729 504 928 779 481 618 Wait 1890 | . 104 18 . 2 5 16 173 53 8 . 6 4 2 46 52 28 340 . 36 . 163 62 55 45 149 476 18 29 Move 8081 | 48 469 258 328 302 179 186 445 161 71 81 172 140 609 215 595 180 42 19 146 362 203 215 552 352 664 222 392 473 Hop . | . . . . . . . . . . . . . . . . . . . . . . . . . . . . . Pick Up 198 | 4 12 11 4 1 12 7 18 22 . 2 1 1 25 2 4 9 . . . 7 5 2 15 7 7 7 8 5 Fast Attach 78 | 7 4 . . . 5 1 5 . . . . . 7 2 . 4 . . . 3 3 4 7 6 6 7 4 3 Attach 72 | . 2 1 . . 10 6 2 4 . . . . 5 2 2 1 . . . 6 1 . 9 3 6 3 1 8 Detach 4 | . . . . . 1 . . . . . . . . 1 . . . . . . . . . . . . . 2 Swap 201 | . 8 4 . 2 7 7 16 3 2 1 1 . 22 3 16 3 . . . 8 5 7 19 19 15 6 15 12 Drop 258 | . 8 3 5 1 10 10 33 6 . . . 1 40 4 16 15 . . . 12 8 7 26 13 13 7 16 4 Fire 619 | 5 39 17 . 5 45 11 38 4 . . 15 5 22 7 48 21 2 4 2 12 26 7 45 58 63 14 26 78 Melee 85 | . 8 5 . 3 1 35 4 7 15 . . . 7 . . . . . . . . . . . . . . . Ram 3 | . . . . . . . . . . . . . . . . . . . . . . . . . . . . 3 Kick . | . . . . . . . . . . . . . . . . . . . . . . . . . . . . . Crush 32 | . 6 4 . . . . 3 . . . . . 1 6 3 . . . . . . 2 1 1 3 . 1 1 Escape Stasis 1 | . . . . . . . . . . . . . . . . . . . . . . . . . . 1 . . Rewire 161 | . . . . . . . . . . . . . . . 125 . . . . . . . . . . 36 . . Trap . | . . . . . . . . . . . . . . . . . . . . . . . . . . . . . Miscellaneous 2 | . . . . . . . . . . . . . . . . . . . . . . . . . 2 . . . Route ------- -11/Scrapyard -10/Materials (discovered 3 exits: [*Mat x2] / [*Min]) -10/Mines (discovered 2 exits: [*Mat] / *Exi) -10/Exiles (discovered 2 exits: [*Min x2]) -9/Mines -8/Materials -8/Garrison -8/Materials -7/Factory (discovered 2 exits: Sto / Gar) -7/Garrison -7/Factory -7/Lower Caves -7/Lower Caves -6/Factory -5/Factory (discovered 4 exits: Upp x2 / *Ext x2) -5/Extension (discovered 3 exits: *Fac x2 / *Cet) -5/Cetus -5/Archives -5/Hub_04(d) -5/Garrison -4/Factory -4/Garrison -4/Factory -3/Research -3/Armory -2/Research (discovered 2 exits: *Acc / Gar) -2/Garrison -2/Research (discovered 3 exits: *Acc x3) -1/Access To Epsilon Eridani History --------- Turn | Location | Event 18 | -11/Scrapyard | Discovered new exit (range 15) 96 | -11/Scrapyard | Entered Materials 325 | -10/Materials | Build established: Mutant 397 | -10/Materials | Discovered new exit (range 16) 576 | -10/Materials | Repaired Lgt. Treads 604 | -10/Materials | Repaired Lgt. Treads 631 | -10/Materials | Repaired Sml. Laser 659 | -10/Materials | Repaired Lgt. Assault Rifle 687 | -10/Materials | Discovered new exit (range 15) 1078 | -10/Materials | Discovered new exit (range 12) 1148 | -10/Materials | Entered Mines 1324 | -10/Mines | Assembled infested the area 1336 | -10/Mines | Build established: Hauler-Mutant 1675 | -10/Mines | Discovered new exit (range 11) 1723 | -10/Mines | Deemed a non-threat by the Exiles lab entrance 1723 | -10/Mines | Discovered new exit (range 5) 1731 | -10/Mines | Entered Exiles 1765 | -10/Exiles | Discovered new exit (range 15) 1788 | -10/Exiles | Met 8R-AWN 1820 | -10/Exiles | Met EX-HEX 1908 | -10/Exiles | Met EX-DEC 2080 | -10/Exiles | Learned location of Zion (-7) 2118 | -10/Exiles | Met EX-BIN 2148 | -10/Exiles | Aligned with FarCom system 2150 | -10/Exiles | Given EX-Vault access code 2198 | -10/Exiles | Opened EX-Vault 2224 | -10/Exiles | Found Lightpack 2.0 2265 | -10/Exiles | Warned to stay clear of 0b10 Research branches 2410 | -10/Exiles | Discovered new exit (range 10) 2427 | -10/Exiles | Left Exiles lab with Lightpack 2.0 2427 | -10/Exiles | Entered Mines 2471 | -9/Mines | Met a Derelict bent on vengeance 2714 | -9/Mines | Learned location of Storage (-7) 3026 | -9/Mines | Discovered new exit (range 14) 3092 | -9/Mines | Entered Materials 3092 | -8/Materials | Evolved 4 slots: Propulsion x1, Utility x1, Weapon x2 3559 | -8/Materials | Identified exit to Garrison 3559 | -8/Materials | Entered Garrison 3594 | -8/Garrison | Triggered checkpoint 3625 | -8/Garrison | Garrison Relay disabled 3846 | -8/Garrison | Triggered checkpoint 4013 | -8/Garrison | Discovered new exit (range 8) 4040 | -8/Garrison | Installed Relay Interface Framework 4047 | -8/Garrison | Entered Materials 4223 | -8/Materials | Build established: Scavenger-Skirmisher 4642 | -8/Materials | Repaired Gauss Rifle 4895 | -8/Materials | Repaired Broken Imp. Datajack 4956 | -8/Materials | Repaired Hvy. Particle Gun 5002 | -8/Materials | Core integrity fell below 50% 5118 | -8/Materials | Discovered new exit (range 7) 5205 | -8/Materials | Entered Factory 5205 | -7/Factory | Evolved 2 slots: Propulsion x1, Utility x1 5206 | -7/Factory | Identified exit to Storage 5327 | -7/Factory | Build established: Hauler-Skirmisher 5416 | -7/Factory | Fabricated Mic. Fission Core (x2) 5558 | -7/Factory | Identified exit to Garrison 5558 | -7/Factory | Entered Garrison 5702 | -7/Garrison | Discovered new exit (range 8) 5714 | -7/Garrison | Entered Factory 5808 | -7/Factory | Discovered new exit (range 9) 5835 | -7/Factory | Entered Lower Caves 6136 | -7/Lower Caves | Discovered new exit (range 5) 6143 | -7/Lower Caves | Entered another Lower Caves area 6147 | -7/Lower Caves | Build established: Hauler-Tank 6357 | -7/Lower Caves | Discovered new exit (range 7) 6367 | -7/Lower Caves | Entered Factory 6367 | -6/Factory | Evolved 2 slots: Utility x2 6753 | -6/Factory | Build established: Hauler-Gunner 7057 | -6/Factory | Fabricated Autogun (x2) 7274 | -6/Factory | Local fabrication network quarantined 7325 | -6/Factory | Build established: Hauler-Skirmisher 7417 | -6/Factory | First assault squad dispatched 7420 | -6/Factory | Discovered new exit (range 9) 7439 | -6/Factory | Entered another Factory area 7439 | -5/Factory | Evolved 2 slots: Utility x1, Weapon x1 7461 | -5/Factory | Identified exit to Upper Caves 7461 | -5/Factory | Identified exit to Extension 7725 | -5/Factory | Repaired Adv. Treads 7746 | -5/Factory | Build established: Scavenger-Tank 7869 | -5/Factory | Entered Extension 8026 | -5/Extension | Rescued a captive Derelict 8042 | -5/Extension | Rescued a captive Derelict 8071 | -5/Extension | Rescued a captive Derelict 8072 | -5/Extension | Rescued a captive Derelict 8169 | -5/Extension | Disrupted transfer network 8651 | -5/Extension | Destroyed B-75 Beast 8680 | -5/Extension | Destroyed B-75 Beast 8770 | -5/Extension | Discovered new exit (range 3) 8981 | -5/Extension | Rescued A7 9069 | -5/Extension | First assault squad dispatched 9164 | -5/Extension | Discovered new exit (range 10) 9167 | -5/Extension | Discovered new exit (range 6) 9191 | -5/Extension | Entered Cetus 9191 | -5/Cetus | Accompanied by 1 ally 9196 | -5/Cetus | Acquired a Cetus Manufacturing Module code from A7 9230 | -5/Cetus | Destroyed Cetus Guard 9241 | -5/Cetus | Destroyed Cetus Guard 9420 | -5/Cetus | Started Cetus Manufacturing Module 9434 | -5/Cetus | Escorted A7 to Cetus Mainframe 9445 | -5/Cetus | Manufactured an Enhanced Grunt 9470 | -5/Cetus | Manufactured an Enhanced Grunt 9495 | -5/Cetus | Manufactured an Enhanced Grunt 9520 | -5/Cetus | Manufactured an Enhanced Grunt 9545 | -5/Cetus | Manufactured an Enhanced Grunt 9581 | -5/Cetus | Discovered new exit (range 15) 9609 | -5/Cetus | Entered Archives 9609 | -5/Archives | Accompanied by 6 allies 9614 | -5/Archives | Received a hacking code to weaken MAIN.C 9678 | -5/Archives | Discovered new exit (range 15) 9835 | -5/Archives | Build established: Commander-Tank 10024 | -5/Archives | Entered Hub_04(d) 10024 | -5/Hub_04(d) | Accompanied by 5 allies 10070 | -5/Hub_04(d) | Identified exit to Garrison 10070 | -5/Hub_04(d) | Entered Garrison 10070 | -5/Garrison | Accompanied by 3 allies 10274 | -5/Garrison | Triggered checkpoint 10325 | -5/Garrison | Discovered new exit (range 14) 10348 | -5/Garrison | Build established: Hauler-Tank 10348 | -5/Garrison | Entered Factory 10348 | -4/Factory | Evolved 2 slots: Utility x1, Weapon x1 10663 | -4/Factory | Build established: Hauler-Executioner 10901 | -4/Factory | Destroyed 9 combat bots 11027 | -4/Factory | Identified exit to Garrison 11027 | -4/Factory | Entered Garrison 11161 | -4/Garrison | Build established: Scavenger-Executioner 11348 | -4/Garrison | Spotted B-86 Titan 11356 | -4/Garrison | Triggered checkpoint 11397 | -4/Garrison | Destroyed B-86 Titan 11452 | -4/Garrison | Triggered checkpoint 11465 | -4/Garrison | Triggered checkpoint 11490 | -4/Garrison | Destroyed 10 combat bots 11626 | -4/Garrison | Discovered new exit (range 15) 11659 | -4/Garrison | Entered Factory 11852 | -4/Factory | Fabricated Autogun (x2) 12087 | -4/Factory | Discovered new exit (range 5) 12139 | -4/Factory | Entered Research 12139 | -3/Research | Evolved 2 slots: Power x1, Utility x1 12466 | -3/Research | Destroyed 8 combat bots 12904 | -3/Research | Found Gamma Bomb Array 12990 | -3/Research | Found Unknown Protection 12990 | -3/Research | Identified Hvy. Reflective Plating 13019 | -3/Research | System corruption reached 10% 13297 | -3/Research | Discovered new exit (range 9) 13346 | -3/Research | Entered Armory 13395 | -3/Armory | Energy Cycler disabled 13581 | -3/Armory | Found Adv. Powered Armor 13586 | -3/Armory | Found Adv. Powered Armor 13588 | -3/Armory | Found Adv. Powered Armor 13764 | -3/Armory | Found Fusion Bomb Launcher 13912 | -3/Armory | Destroyed 9 combat bots 14055 | -3/Armory | Destroyed 17 combat bots 14138 | -3/Armory | First assault squad dispatched 14178 | -3/Armory | Destroyed 7 combat bots 14186 | -3/Armory | Discovered new exit (range 3) 14195 | -3/Armory | Entered Research 14195 | -2/Research | Evolved 2 slots: Utility x1, Weapon x1 14695 | -2/Research | First assault squad dispatched 14873 | -2/Research | Discovered new exit (range 9) 15567 | -2/Research | Destroyed 8 combat bots 15656 | -2/Research | Destroyed 8 combat bots 15657 | -2/Research | Identified exit to Garrison 15657 | -2/Research | Entered Garrison 15662 | -2/Garrison | Lost 3 parts (2u1w) 16215 | -2/Garrison | Triggered checkpoint 16239 | -2/Garrison | Lost 4 parts (1n1u2w) 16261 | -2/Garrison | Destroyed 7 combat bots 16437 | -2/Garrison | Triggered checkpoint 16466 | -2/Garrison | Triggered checkpoint 16556 | -2/Garrison | Discovered new exit (range 11) 16574 | -2/Garrison | Entered Research 16574 | -2/Research | Accompanied by 2 allies 16682 | -2/Research | Discovered new exit (range 15) 17040 | -2/Research | Found Prototype Processor 17040 | -2/Research | Identified Exp. Terrain Scan Processor 17130 | -2/Research | Identified exit to Access 17293 | -2/Research | Entered Access 17293 | -1/Access | Evolved 2 slots: Utility x2 17589 | -1/Access | First assault squad dispatched 17755 | -1/Access | Destroyed 11 combat bots 17866 | -1/Access | Destroyed 8 combat bots 17931 | -1/Access | Spotted B-99 Colossus 17961 | -1/Access | Destroyed B-99 Colossus 17976 | -1/Access | Released all parts (17) 18007 | -1/Access | Lost 9 parts (1p4u4w) 18062 | -1/Access | System corruption reached 10% 18106 | -1/Access | Discovered new exit (range 4) 18107 | *** | Escaped! Last Messages --------------- 18058_ Acquired 66 matter. 18059_ Door malfunctions. 18060_ P-80 Master resets P-80 Master, system corruption cleaned. 18064_ U-05 Engineer repairs door. 18078_ System corrupted: Broken Biometal Heavy Treads rejected. 18081_ Acquired Broken Biometal Heavy Treads. 18085_ Dropped Imp. Energy Well. 18086_ Extracted 88 energy. 18087_ Extracted 25 energy. 18087_ K-01 Serf cleans the Terminal. 18087_ P-80 Master resets P-80 Master, system corruption cleaned. 18087_ Acquired Imp. Energy Well. 18090_ K-01 Serf cleans the Terminal. 18093_ System corrupted: Component data lost. 18093_ P-80 Master resets G-73 Enforcer, system corruption cleaned. 18094_ K-01 Serf cleans the Terminal. 18094_ System corrupted: Cld. Phase Cannon targeting data glitched. 18096_ K-01 Serf cleans the Terminal. 18102_ Main Access Shell breached. 18106_ EXIT=FOUND Map ----- +----------------------------------------------------+ | ?????????????????????????????????????????????????? | | ?????????????????????????????????????????????????? | | ?????????????????????????????????????????????????? | | ?????????????????????????????????????????????????? | | ?????????????????????????????????????????????????? | | ?????????????????????????????????????????????????? | | ?????????????????????????????????????????????????? | | ?????????????????????????????????????????????????? | | ?????????????????????????????????????????????????? | | ?????????????????????????????????????????????????? | | ?????????????????????????????????????????????????? | | ??????????????????????????????o??????????????????? | | ??????????? ????????w????????????????????????????? | | ??????????# ????????????????????????????????????? | | ??????????+ ????????????????????????????????????? | | ??????????# ????????????????????????????????????? | | ??????????# ????????????????????????????????????? | | ??????????# #???????????????????????????????????? | | ??????????# #???????????????????????????????????? | | ??????????# #######"###?????????????????????????? | | ??????????# """T"""" ?????????????????????????? | | ??????????# """ """" ???????????BB????????????? | | ??????????# " """"""??????BB????????????? | | ??????????# " " "????????????????????? | | ??????????# " " "" "????????????????????? | | ??????????# " " @" "????????????????????? | | ??????????# " " "????????????????????? | | ??????????# g " " """" "????BB????????????? | | ??????????# g g" "????BB????????????? | | ??????????# gp ggg"p "??????????????????? | | ??????????# ######g"p#########??????????????????? | | ??????????# #????##g##??????????????????????????? | | ??????????# #???###########?????????????????????? | | ??????????# #??? ?????????????????????? | | ??????????# g#??? ?????????????????????? | | ??????????# #?# ? ?????????????????????? | | ??????????# #?# ?????????????????????? | | ??????????# #?? ?????????????????????? | | ????####### #?? ????????????????????? | | ????# # #??? " " ????????#######?????? | | ????# # #?????""" """ ??#### #?????? | | ###?# # #??????" """ ???# + #?????? | | !## # #??????? "?????# # #?????? | | ## # ##########/######## # #?????? | | ## [ # g h=phg p / / ??? | | ## # |*! # # ?? | | ## #############+######## #????????#?????? | | ## #??????# ## #??????????????? | | #? ???????# ## #??????????????? | | ####+########## ## #??????????????? | +----------------------------------------------------+ Best States ------------- Heat Dissipation 102 Energy Generation 43 Energy Capacity 870 Matter Stores 340 Matter Capacity 500 Sight Range 22 Terrain Scan Density 10 Jamming Range 16 Additional Mass Support 12 Armor Coverage 2050 Resistance: KI 20 Resistance: TH 30 Resistance: EM 25 Weapon Cycling 25 Evasion (%) 50 Targeting Accuracy 8 Target Analysis 8 Armor Integrity Analysis 66 Recoil Reduction 4 Kinecelleration 40 Offensive Hacking 12 Defensive Hacking 12 Item Schematics ----------------- Hcp. Storage Unit | -10/Materials | Hacked Imp. Datajack | -8/Materials | Scanalyzed Autogun | -7/Factory | Scanalyzed Robot Schematics ------------------ None Fabricated ------------ Mic. Fission Core | x2 | -7/Factory | Preloaded Autogun | x2 | -6/Factory Autogun | x2 | -4/Factory Alien Tech Used ----------------- None Achievements -------------- None Challenges ------------ None Game ------ Seed ArmoredHellfireProjector Manual? 0 Play Time 01:57:16 Cumulative 522.0 hours Start 2020.05.10 @ 12:27:59 End 2020.05.10 @ 14:25:09 Sessions 1 Manual Loads 0 Difficulty Rogue Special Mode None Game No. 847 Rogue 847 Adventurer 0 Explorer 0 Win Type 0 Total 48 Types 31/1/6/8/2/0/0 Lore% 94 Gallery% 93 Achievement% 81 Wizard Run 0 Options --------- ASCII 1 Keyboard 0 Movement Numpad Keybinds 0 Fullscreen 0 Font 14/SmallcapsGlow Map View 76x50 Tactical HUD 1 Map Filters NONE Filters NONE Steam 1 RUN: f8ffd457-669d-410b-800c-582ca382d479